Cogmind - Beta 13 @@@ ROGUE MODE // 2024.06.07 @ 14:29:22 Player: Castelle Result: Destroyed by S-10 Pest with Light Assault Rifle Performance ------------- Evolutions (1) 500 Regions Visited (4) 800 Robots Destroyed (30) 150 Value Destroyed (850) 850 Prototype IDs (1) 20 Alien Tech Used (0) 0 Bonus (161) 161 TOTAL SCORE: 2481 Bonus ------- Follower Combat Kills 161 Cogmind --------- Core Integrity 0/400 Matter 252/300 Energy 98/100 System Corruption 0% Temperature Cool (0) Movement Core (50) Location -9/Mines Parts ------- > --- POWER (1) -------- (None) > --- PROPULSION (3) --- (None) > --- UTILITY (3) ------ Targeting Computer > --- WEAPON (2) ------- (None) > --- INVENTORY (5) ---- Medium Storage Unit Peak State ------------ > --- POWER ------------ Improved Ion Engine > --- PROPULSION ------- Aluminum Leg Carbon-fiber Leg Makeshift Leg > --- UTILITY ---------- Heat Sink Medium Storage Unit Targeting Computer > --- WEAPON ----------- Beamcaster Light Cannon > --- INVENTORY -------- Ion Engine Ion Engine Aluminum Leg Aluminum Leg Heat Sink Targeting Computer Small Laser Light Assault Rifle Heavy Assault Rifle [Rating: 20] Favorites ----------- Power Ion Engine Engine Ion Engine Propulsion Aluminum Leg Leg Aluminum Leg Wheel Compact Wheel Utility Targeting Computer Device Heat Sink Storage Small Storage Unit Processor Targeting Computer Weapon Light Cannon Energy Gun Beamcaster Ballistic Gun Light Assault Rifle Ballistic Cannon Light Cannon Launcher Grenade Launcher Special Weapon Mining Laser Build | -11 -10 -10 -9 -9 ------- Run | Yrd Mat Min Mat Min Slots Evolved 2 | . . . 2 . Power . | . . . . . Propulsion 1 | . . . 1 . Utility 1 | . . . 1 . Weapon . | . . . . . Parts Attached 35 | 6 6 8 12 3 Power 8 | 1 1 3 2 1 Engine 8 | 1 1 3 2 1 Core . | . . . . . Reactor . | . . . . . Propulsion 8 | 2 . 2 4 . Treads . | . . . . . Leg 6 | . . 2 4 . Wheel 2 | 2 . . . . Hover . | . . . . . Flight . | . . . . . Utility 7 | 1 . 1 3 2 Device 3 | . . . 2 1 Storage 2 | 1 . . 1 . Processor 2 | . . 1 . 1 Hackware . | . . . . . Protection . | . . . . . Artifact . | . . . . . Weapon 12 | 2 5 2 3 . Energy Gun 3 | 1 1 1 . . Energy Cannon . | . . . . . Ballistic Gun 5 | 1 2 . 2 . Ballistic Cannon 2 | . 1 1 . . Launcher 1 | . 1 . . . Special Weapon 1 | . . . 1 . Impact Weapon . | . . . . . Slashing Weapon . | . . . . . Piercing Weapon . | . . . . . Special Melee Weapon . | . . . . . Unidentified Prototypes 1 | . 1 . . . Parts Lost 21 | . 2 3 11 5 Power 3 | . . . 2 1 Propulsion 7 | . . 2 5 . Utility 3 | . . . . 3 Weapon 8 | . 2 1 4 1 Highest Loss Streak 12 | . 2 1 7 12 To Critical Strikes . | . . . . . Average Slot Usage (%) 82 | . 85 86 84 29 Engine 12 | . 14 14 10 6 Leg 13 | . . 9 23 . Wheel 8 | . 28 10 . . Device 3 | . . . 8 11 Storage 11 | . 14 14 10 . Processor 8 | . . 9 11 11 Energy Gun 4 | . . 4 5 . Ballistic Gun 11 | . 14 17 4 . Ballistic Cannon 6 | . . 5 9 . Launcher 1 | . 12 . . . Naked Turns . | . . . . . Heaviest Build 26 | 10 16 18 26 7 Greatest Support 45 | 26 26 35 45 3 Greatest Overweight (x) 4 | 1 . 4 2 2 Average Overweight (x) . | . . . . . Largest Inventory Capacity 10 | 8 8 8 10 5 Average Capacity 8 | 7 8 8 9 5 Most Carried 9 | 2 5 6 9 3 Average Carried 4 | . 4 4 5 1 Final Capacity 8 | 8 8 8 5 5 Final Carried 6 | 2 3 6 4 1 Class Distribution -------------------- 73% | Mutant 26% | Scavenger-Mutant Dominant Class ---------------- Mutant | -10/Materials Mutant | -10/Mines Scavenger-Mutant | -9/Materials Mutant | -9/Mines Resources | -11 -10 -10 -9 -9 ----------- Run | Yrd Mat Min Mat Min Matter Collected 817 | 191 126 253 227 20 Remotely . | . . . . . Salvage Created 778 | . 192 93 473 20 Parts 50 | . 15 4 29 2 Haulers Intercepted . | . . . . . Recyclers Shooed . | . . . . . Parts Field Recycled . | . . . . . Retrieved Matter . | . . . . . Parts Self-Destructed . | . . . . . Prevented . | . . . . . Kills | -11 -10 -10 -9 -9 ------- Run | Yrd Mat Min Mat Min Combat Hostiles Destroyed 25 | . 8 3 13 1 Melee 1 | . . . . 1 Guns 13 | . 5 1 7 . Cannons 7 | . . 2 5 . AOE 4 | . 3 . 1 . Classes Destroyed 7 | . 3 . 4 . Worker 2 | . 1 . 1 . Builder 1 | . . . 1 . Watcher 2 | . . . 2 . Swarmer 8 | . 4 . 3 1 Grunt 14 | . 4 3 7 . Brawler 1 | . . . 1 . Sentry 2 | . . . 2 . Best Kill Streak 4 | . 3 2 4 1 Combat Bots Only 3 | . 3 2 3 1 Max Kills in Single Turn 2 | . 2 1 2 1 Gunslinging . | . . . . . Exploded 2 | . 2 . 1 . Melee 1 | . . . . 1 Uniques/NPCs Destroyed . | . . . . . Combat | -11 -10 -10 -9 -9 -------- Run | Yrd Mat Min Mat Min Hostile Shots Fired 253 | . 72 18 109 54 Missed 71 | . 21 3 31 16 Damage Taken 2098 | . 500 199 1065 334 Core 579 | . 147 25 198 209 Absorbed by Shields . | . . . . . Core Remaining (%) 65 | 100 . 31 . . Volleys Fired 89 | . 20 11 58 . Largest 2 | . 2 2 2 . Hottest 110 | . 73 55 110 . Shots Fired 164 | . 34 23 107 . Gun 102 | . 27 17 58 . Cannon 55 | . . 6 49 . Launcher 7 | . 7 . . . Special . | . . . . . Kinetic 115 | . 23 23 69 . Thermal 42 | . 4 . 38 . Explosive 7 | . 7 . . . Electromagnetic . | . . . . . Robot Hit Streak 13 | . 6 13 9 . Robot Miss Streak 3 | . 3 3 3 . Penetration Max . | . . . . . Secondary Targets 3 | . 3 . . . Max Gunslinging Chain 1 | . 1 . . . Shots Hit Robots 81 | . 18 19 44 . Core Hits 41 | . 13 5 19 4 Critical Kills . | . . . . . Critical Parts Destroyed . | . . . . . Critical Strikes 2 | . . . 2 . Burn 1 | . . . 1 . Blast 1 | . . . 1 . Melee Attacks . | . . . . . Impact . | . . . . . Slashing . | . . . . . Piercing . | . . . . . Sneak Attacks . | . . . . . Combat Hostiles . | . . . . . Follow-up Attacks . | . . . . . Damage Inflicted 1967 | . 452 259 1239 17 Guns 849 | . 193 160 496 . Cannons 479 | . . 90 389 . Explosions 603 | . 255 . 348 . Melee . | . . . . . Ramming 36 | . 4 9 6 17 Kinetic 913 | . 157 250 506 . Thermal 681 | . 36 . 645 . Explosive 337 | . 255 . 82 . Electromagnetic . | . . . . . Impact . | . . . . . Slashing . | . . . . . Piercing . | . . . . . Highest Corruption 3 | . . 3 . . Average Corruption 2 | . . 2 . . Corruption Purged . | . . . . . Corruption Blocked . | . . . . . Effects 9 | . . 9 . . Message Errors 1 | . . 1 . . Matter Fused 3 | . . 3 . . Heat Flow Errors 1 | . . 1 . . Energy Discharges 1 | . . 1 . . Data Loss (minor) 2 | . . 2 . . Misfires 1 | . . 1 . . Overload Shots . | . . . . . Overflow Damage 40 | . . . 40 . Projectiles . | . . . . . Explosions 40 | . . . 40 . Melee . | . . . . . Knockbacks 4 | . . 2 2 . Impact . | . . . . . Kinetic 4 | . . 2 2 . Secondary . | . . . . . Self-Inflicted Damage 137 | . 34 4 93 6 Shots 3 | . 1 . 2 . Rammed 14 | . 1 3 . 10 Targets Rammed 16 | . 1 3 2 10 Kicked 2 | . . . 2 . Crushed . | . . . . . Highest Temperature 403 | . 105 114 403 . Average Temperature 96 | . 57 30 117 . Received Heat Transfer 480 | . 135 99 246 . Effects 3 | . . . 3 . Shutdowns 1 | . . . 1 . Energy Bleed 1 | . . . 1 . Matter Decay 1 | . . . 1 . Siege Activations . | . . . . . Robots Corrupted . | . . . . . Combat Hostiles . | . . . . . Parts Fried . | . . . . . Impact Corruptions . | . . . . . Robots Melted . | . . . . . Combat Hostiles . | . . . . . Parts Melted 1 | . . . 1 . Heat Transferred 1001 | . 111 . 890 . Parts Sabotaged . | . . . . . Parts Stolen . | . . . . . Parts Stripped . | . . . . . Power Chain Reactions . | . . . . . Alert | -11 -10 -10 -9 -9 ------- Run | Yrd Mat Min Mat Min Peak Influence 474 | . 303 283 474 147 Initial 132 | . . 117 31 132 Average 194 | . 134 184 249 134 Maximum Alert Level 2 | . 1 1 2 . Low Security (%) 49 | 100 61 48 36 100 Level 1 47 | . 38 51 56 . Level 2 2 | . . . 6 . Level 3 . | . . . . . Level 4 . | . . . . . Level 5 . | . . . . . High Security . | . . . . . Max Security . | . . . . . Squads Dispatched 4 | . 3 . 1 . Investigation 1 | . 1 . . . Extermination . | . . . . . Reinforcement 3 | . 2 . 1 . Assault . | . . . . . Garrison . | . . . . . Intercept . | . . . . . Searches Triggered . | . . . . . Construction Impeded . | . . . . . Haulers Reinforced . | . . . . . Active Scanning Responses . | . . . . . Cargo Convoy Interrupts . | . . . . . Stealth | -11 -10 -10 -9 -9 --------- Run | Yrd Mat Min Mat Min Distress Signals 3 | . 1 . 2 . Communications Jammed . | . . . . . Distress Signals . | . . . . . Times Spotted 54 | . 15 7 28 4 Peak Tracking Total 7 | . 7 2 7 3 Tactical Retreats 3 | . . . 2 1 Traps | -11 -10 -10 -9 -9 ------- Run | Yrd Mat Min Mat Min Traps Triggered 1 | . 1 . . . Indirectly . | . . . . . Trap Hack Attempts . | . . . . . Triggered . | . . . . . Disarmed . | . . . . . Reprogrammed . | . . . . . Reused . | . . . . . Traps Extracted . | . . . . . Installed . | . . . . . Triggered . | . . . . . Machines | -11 -10 -10 -9 -9 ---------- Run | Yrd Mat Min Mat Min Machines Disabled 10 | . 2 2 6 . Max in Single Turn 4 | . 1 1 4 . Machines Repaired . | . . . . . Machines Dismantled . | . . . . . Machines Sabotaged . | . . . . . Overloaded Fab Kills . | . . . . . Hacking | -11 -10 -10 -9 -9 --------- Run | Yrd Mat Min Mat Min Machines Accessed . | . . . . . Terminals . | . . . . . Fabricators . | . . . . . Repair Stations . | . . . . . Recycling Units . | . . . . . Scanalyzers . | . . . . . Garrison Access . | . . . . . Total Hacks . | . . . . . Successful . | . . . . . Failed . | . . . . . Catastrophic . | . . . . . Database Lockouts . | . . . . . Manual . | . . . . . Terminals . | . . . . . Fabricators . | . . . . . Repair Stations . | . . . . . Recycling Units . | . . . . . Scanalyzers . | . . . . . Garrison Access . | . . . . . Terminal Hacks . | . . . . . Fabricator Hacks . | . . . . . Repair Station Hacks . | . . . . . Recycling Unit Hacks . | . . . . . Scanalyzer . | . . . . . Garrison Access Hacks . | . . . . . Unauthorized Hacks . | . . . . . Terminals . | . . . . . Fabricators . | . . . . . Repair Stations . | . . . . . Recycling Units . | . . . . . Scanalyzers . | . . . . . Garrison Access . | . . . . . Data Cores Recovered . | . . . . . Used . | . . . . . Hacking Detections . | . . . . . Full Trace Events . | . . . . . Feedback Events . | . . . . . Feedback Blocked . | . . . . . Robot Schematics Acquired . | . . . . . Robots Built . | . . . . . Authchips . | . . . . . Time . | . . . . . Total Robot Build Rating . | . . . . . Part Schematics Acquired . | . . . . . Parts Built . | . . . . . Authchips . | . . . . . Time . | . . . . . Total Part Build Rating . | . . . . . Parts Repaired . | . . . . . Time . | . . . . . Parts Recycled . | . . . . . Recycled Matter . | . . . . . Retrieved Matter . | . . . . . Retrieved Components . | . . . . . Parts Scanalyzed . | . . . . . Part Schematics Acquired . | . . . . . Parts Damaged . | . . . . . Bothacking | -11 -10 -10 -9 -9 ------------ Run | Yrd Mat Min Mat Min Used RIF Installer . | . . . . . Robots Hacked . | . . . . . Non-combat . | . . . . . Combat . | . . . . . Robot Hacks Applied . | . . . . . Relay Couplers Released . | . . . . . Fabnet Peak Effective % . | . . . . . Robots Rewired . | . . . . . Allies Hacked . | . . . . . Hacks Repelled . | . . . . . Allies | -11 -10 -10 -9 -9 -------- Run | Yrd Mat Min Mat Min Total Allies 2 | . . 2 . . Largest Group 2 | . . 2 . . Highest-Rated Group 46 | . . 46 . . Highest-Rated Ally 31 | . . 31 . . Total Orders . | . . . . . Ally Attacks 21 | . . 21 . . Total Damage 354 | . . 354 . . Kills 5 | . . 5 . . Allies Corrupted . | . . . . . Allies Melted . | . . . . . Intel | -11 -10 -10 -9 -9 ------- Run | Yrd Mat Min Mat Min Robot Analysis Total . | . . . . . Derelict Logs Recovered 2 | . . 1 . 1 Drone Launches . | . . . . . Drone Recoveries . | . . . . . Exploration | -11 -10 -10 -9 -9 ------------- Run | Yrd Mat Min Mat Min Turns Passed 1507 | 39 229 593 568 78 Spaces Moved 1026 | 33 183 479 244 87 Core 114 | 5 . 2 20 87 Treads . | . . . . . Legs 380 | . . 156 224 . Wheels 532 | 28 183 321 . . Hover . | . . . . . Flight . | . . . . . Fastest Speed 50 | 50 90 90 50 50 Average Speed 112 | 86 90 108 153 72 Slowest Speed 260 | 100 90 250 260 150 Overloaded Moves . | . . . . . Propulsion Burnouts . | . . . . . Robots Hopped . | . . . . . Cave-ins Triggered . | . . . . . Exploration Rate (%) 35 | 3 40 75 28 29 Regions Visited 4 Branch Regions 2 Pre-discovered Areas . | . . . . . Known Exits Taken . | . . . . . Unknown Exits Taken 4 | 1 1 1 1 . Scrap Searched 1 | . . 1 . . Spaces Dug . | . . . . . Terrain Destroyed 125 | . 75 . 50 . Melee . | . . . . . Projectile . | . . . . . AOE 125 | . 75 . 50 . Terrain Rammed . | . . . . . Walls Destroyed . | . . . . . Machines Disabled . | . . . . . Actions | -11 -10 -10 -9 -9 --------- Run | Yrd Mat Min Mat Min Total 1212 | 40 214 529 329 100 Wait 33 | . . 26 7 . Move 1022 | 32 182 478 243 87 Hop . | . . . . . Pick Up 8 | 2 1 2 3 . Fast Attach 14 | 6 2 4 2 . Attach 13 | . 3 1 6 3 Detach 5 | . 3 1 1 . Swap 8 | . 1 3 4 . Drop 4 | . 1 . 3 . Fire 89 | . 20 11 58 . Melee . | . . . . . Ram 14 | . 1 3 . 10 Kick 2 | . . . 2 . Crush . | . . . . . Escape Stasis . | . . . . . Rewire . | . . . . . Trap . | . . . . . Miscellaneous . | . . . . . Route ------- -11/Scrapyard -10/Materials -10/Mines (discovered 2 exits: [*Mat x2]) -9/Materials -9/Mines History --------- Turn | Location | Event 22 | -11/Scrapyard | Discovered new exit (range 16) 40 | -11/Scrapyard | Entered Materials 185 | -10/Materials | Discovered new exit (range 16) 253 | -10/Materials | Core integrity fell below 50% 269 | -10/Materials | Entered Mines 276 | -10/Mines | Met a Derelict bent on vengeance 281 | -10/Mines | Discovered new exit (range 15) 303 | -10/Mines | Build established: Mutant 350 | -10/Mines | Learned Materials stockpile data 661 | -10/Mines | Discovered new exit (range 8) 862 | -10/Mines | Entered Materials 862 | -9/Materials | Evolved 2 slots: Propulsion x1, Utility x1 885 | -9/Materials | Discovered new exit (range 16) 1168 | -9/Materials | Build established: Scavenger-Mutant 1201 | -9/Materials | Lost 3 parts (2n1w) 1430 | -9/Materials | Entered Mines 1433 | -9/Mines | Core integrity fell below 50% 1466 | -9/Mines | Core integrity fell below 20% 1499 | -9/Mines | Learned location of 1 exit from Proximity Caves 1503 | -9/Mines | Assembled infested the area 1508 | -9/Mines | Destroyed by S-10 Pest with Light Assault Rifle Last Messages --------------- 01428_ Acquired Mining Laser. LOCATION=UNKNOWN GOAL=ESCAPE 01434_ Slammed into S-10 Pest. 01439_ Destabilizing: Core damaged (-20). 01440_ Mining Laser destroyed. 01440_ Slammed into S-10 Pest. 01440_ S-10 Pest destroyed. 01441_ Acquired 20 matter. 01457_ Heat Sink destroyed. 01472_ Slammed into S-10 Pest. 01476_ Targeting Computer destroyed. 01477_ Ion Engine destroyed. 01489_ K-01 Serf collects debris. 01493_ Slammed into T-07 Excavator. 01499_ Acquired derelict log, extracted data. Data stored: Proximity Caves exits (x1). 01503_ ALERT: Infestation in the mines, dispatching Demolisher response squad. 01505_ Heat Sink destroyed. Map ----- +----------------------------------------------------+ | ??????????????????????????????????????????? | | ??????????????????????????????????????????? | | ??????????????????????????????????????????? | | ??????????????????????????????????????????? | | ??????????????????????????????????????????? | | ??????????????????????????????????????????? | | ??????????????????????????????????????????? | | ??????????????????????????????????????????? | | ??????????????????????????????????????????? | | ??????????????????????????????????????????? | | ??????????????????????????????????????????? | | ??????????????????????????????????????????? | | ??????????????????????????????????????????? | | ?????????????????????????????####?????????? | | ????????????????????????????## ##????????? | | ???????????????????????????## #????????? | | ???????????????????????????# ##???????? | | ???????????????????????????# ###?????? | | ???????????????????????????# ##????? | | ????????????????????????????# #????? | | ???????????????????????????## #????? | | ?????????????????????????### ##????? | | ????????????????????????## ##?????? | | ???????????????????????## ###??????? | | ??????????????????????## ###????????? | | ??????????????????????# @ ##??????????? | | ???????????# ?????????# t ##???????????? | | ????????????# ###### ts##???????????? | | ?????????????# #???????????? | | ??????????????# ## #??????????? | | ??????????????## ######s##### #?????????? | | ??????????????????????# ##???# #?????????? | | ?????????????????###### ##??? #????????? | | ?????????????????# ##?? ???????? | | ?????????????????# ### #??? ??????? | | ?????#???????????# #?# ?????? | | ?????# ??????????# #?# ????? | | ?????# ########## #?# #?????? | | ?????# #?# # ##?????? | | ?????# #######? ##? ###??????? | | ?# ## ## #??????? ####???#????????? | | ??????????# ##?????? # #???????????????? | | ??????????# ##????#### #???????????????? | | ?????###??# ###?????? ???????????????? | | ?????# ?## ##????? ???????????????? | | ?????# #?# """ ##????### ??????????????? | | ?????# #?# """ ##?????? ??????????????? | | ###### #?## """ #??????? ?????????????? | | ##### ##????????????????????? | | ?????# #### #????????????????????? | +----------------------------------------------------+ Best States ------------- Heat Dissipation 38 Energy Generation 12 Energy Capacity 265 Matter Stores 300 Matter Capacity 300 Sight Range 16 Terrain Scan Density 10 Evasion (%) 55 Targeting Accuracy 5 Item Schematics ----------------- None Robot Schematics ------------------ None Fabricated ------------ Nothing Alien Tech Used ----------------- None Achievements -------------- None Challenges ------------ None Game ------ Seed SkeletonPhasingSpear Manual? 0 Play Time 00:21:17 Cumulative 12.3 hours Start 2024.06.07 @ 09:03:28 End 2024.06.07 @ 14:29:22 Sessions 3 Manual Loads 0 Difficulty Rogue Special Mode None Game No. 9 Rogue 4 Adventurer 5 Explorer 0 Win Type - Total 0 Types 0/0/0/0/0/0/0/0/0 Lore% 4 Gallery% 16 Achievement% 17 Wizard Run 0 Options --------- Layout 2 ASCII 0 Keyboard 1 Movement Numpad Keybinds 0 Fullscreen 1 Font 24/Smallcaps Map View 50x44 Zoom Use 0% Tactical HUD 1 Map Filters NONE Filters NONE Steam 1 RUN: 057e7128-375f-436b-b746-73d5dd1af465